Cogmind - Beta 14 @@@ ROGUE MODE // 2025.03.20 @ 10:20:11 Player: SovietPaperclip Result: Self-destructed Performance ------------- Evolutions (4) 2000 Regions Visited (11) 2200 Robots Destroyed (153) 765 Value Destroyed (4845) 4845 Prototype IDs (35) 700 Alien Tech Used (0) 0 Bonus (1765) 1765 TOTAL SCORE: 12275 Bonus ------- High Alert Combat Kills 59 Follower Combat Kills 1594 Aligned with FarCom 300 Friendly Fire -188 Cogmind --------- Core Integrity 793/850 Matter 272/300 Energy 500/500 System Corruption 4% Temperature Cool (25) Movement Treading (250) Ox1 Location -6/Factory Parts ------- > --- POWER (2) -------- Improved Deuterium Engine Fission Core > --- PROPULSION (4) --- Armored Treads Armored Treads Armored Treads Armored Treads > --- UTILITY (6) ------ Huge Storage Unit Improved Sensor Array Improved Signal Interpreter Experimental Targeting Computer Makeshift Medium Armor Plating Hardlight Generator > --- WEAPON (3) ------- Improved Assault Rifle Heavy Battle Rifle Shock Maul > --- INVENTORY (25) --- Improved Deuterium Engine Light Angular Momentum Engine Armored Treads Coolant Injector Coolant Injector Energy Well (350) Matter Compressor (46) Machine Analyzer Advanced Terrain Scanner Experimental Core Analyzer Focal Shield Authchip [Device] Authchip [Device] Authchip [Storage] Authchip [Weapon] Tractor Beam Improved Assault Rifle Improved Assault Rifle Improved Assault Rifle Heavy Battle Rifle Hypervelocity Gauss Rifle Remote Datajack Peak State ------------ > --- POWER ------------ Cold Fusion Reactor > --- PROPULSION ------- Armored Treads Armored Treads Armored Treads > --- UTILITY ---------- Experimental Heat Sink Huge Storage Unit Experimental Targeting Computer Makeshift Medium Armor Plating > --- WEAPON ----------- YOLO Cannon Barrage Gun > --- INVENTORY -------- Light Deuterium Engine Improved Deuterium Engine Improved Deuterium Engine Light Angular Momentum Engine Armored Treads Armored Treads Coolant Injector Coolant Injector Machine Analyzer Improved Signal Interpreter Experimental Core Analyzer Authchip [Device] Authchip [Device] Authchip [Storage] Authchip [Weapon] Tractor Beam Improved Assault Rifle Improved Assault Rifle Improved Assault Rifle Improved Assault Rifle Heavy Battle Rifle Heavy Battle Rifle Shock Maul [Rating: 65] Favorites ----------- Power Improved Ion Engine Engine Improved Ion Engine Power Core Fission Core Reactor Cold Fusion Reactor Propulsion Armored Treads Treads Armored Treads Leg Aluminum Leg Utility Huge Storage Unit Device Experimental Heat Sink Storage Huge Storage Unit Processor Experimental Targeting Computer Hackware EX Chip 2 Protection Medium Insulated Plating Weapon Improved Assault Rifle Energy Gun Improved EM Shotgun Energy Cannon YOLO Cannon Ballistic Gun Improved Assault Rifle Launcher Mini Grenade Launcher Special Weapon CPS Tube Impact Weapon Shock Maul Build | -11 -10 -10 -9 -9 -9 -8 -8 -8 -8 -8 -6 ------- Run | Yrd Mat Min Mat Min Exi Min Mat Sto Rec Scr Fac Slots Evolved 8 | . . . 2 . . . 2 . . . 4 Power 1 | . . . . . . . . . . . 1 Propulsion 2 | . . . 1 . . . . . . . 1 Utility 4 | . . . . . . . 2 . . . 2 Weapon 1 | . . . 1 . . . . . . . . Parts Attached 129 | 6 2 2 18 1 23 3 22 22 . 21 9 Power 13 | 1 . . 2 . 1 . 3 1 . 3 2 Engine 11 | 1 . . 2 . 1 . 3 1 . 2 1 Core 1 | . . . . . . . . . . . 1 Reactor 1 | . . . . . . . . . . 1 . Propulsion 30 | 2 . . 6 . 4 . 7 7 . 3 1 Treads 27 | 2 . . 6 . 3 . 5 7 . 3 1 Leg 3 | . . . . . 1 . 2 . . . . Wheel . | . . . . . . . . . . . . Hover . | . . . . . . . . . . . . Flight . | . . . . . . . . . . . . Utility 34 | 1 2 . 2 . 12 1 7 4 . 2 3 Device 14 | . 1 . 2 . 2 1 4 2 . . 2 Storage 4 | 1 1 . . . 1 . 1 . . . . Processor 4 | . . . . . 2 . . . . 1 1 Hackware 1 | . . . . . 1 . . . . . . Protection 11 | . . . . . 6 . 2 2 . 1 . Artifact . | . . . . . . . . . . . . Weapon 52 | 2 . 2 8 1 6 2 5 10 . 13 3 Energy Gun 3 | . . . . . . . 3 . . . . Energy Cannon 3 | . . . . . 1 . . . . 2 . Ballistic Gun 35 | 2 . . 8 . 5 1 1 7 . 10 1 Ballistic Cannon . | . . . . . . . . . . . . Launcher 5 | . . 2 . 1 . 1 1 . . . . Special Weapon 1 | . . . . . . . . . . 1 . Impact Weapon 5 | . . . . . . . . 3 . . 2 Slashing Weapon . | . . . . . . . . . . . . Piercing Weapon . | . . . . . . . . . . . . Special Melee Weapon . | . . . . . . . . . . . . Unidentified Prototypes 8 | . . . 1 . 2 . 2 2 . 1 . Parts Lost 40 | . . . 7 . 7 4 13 2 . 7 . Power 5 | . . . 1 . . . 3 . . 1 . Propulsion 14 | . . . 3 . 3 1 5 1 . 1 . Utility 8 | . . . 1 . 1 1 2 1 . 2 . Weapon 13 | . . . 2 . 3 2 3 . . 3 . Highest Loss Streak 7 | . . . 3 . 6 2 7 1 . 4 . To Critical Strikes 4 | . . . . . 4 . . . . . . Average Slot Usage (%) 93 | . 93 100 97 100 95 85 76 94 90 94 94 Engine 9 | . 14 14 10 11 11 11 8 8 9 8 6 Treads 27 | . 28 28 31 33 29 23 19 25 27 26 25 Device 9 | . 7 14 10 11 4 10 11 12 9 8 10 Storage 9 | . 14 14 11 11 11 11 9 9 9 9 6 Processor 2 | . . . . . . . . . . 7 11 Protection 5 | . . . . . 6 . 4 11 9 8 6 Energy Gun 1 | . . . . . . . 12 2 . . . Ballistic Gun 23 | . 28 1 32 32 26 28 6 20 18 22 16 Launcher 1 | . . 26 . . 5 . 2 . . . . Impact Weapon 1 | . . . . . . . . 3 9 1 2 Peak Build Rating 65 | 6 9 11 20 20 40 31 43 48 48 65 64 Average Rating 34 | 4 7 10 14 20 24 28 34 44 47 47 58 On Entrance 25 | . 6 9 11 20 20 27 29 42 48 47 42 Naked Turns . | . . . . . . . . . . . . Heaviest Build 128 | 12 28 28 38 38 69 54 110 111 104 110 128 Greatest Support 80 | 40 40 40 63 63 63 60 62 62 60 60 80 Greatest Overweight (x) 14 | 2 . . 1 . 3 1 14 4 1 2 1 Average Overweight (x) . | . . . . . . . 1 1 1 1 1 Largest Inventory Capacity 25 | 8 15 15 15 15 20 20 25 25 25 25 25 Average Capacity 21 | 6 12 15 15 15 19 20 23 25 25 25 25 Most Carried 25 | . 5 5 15 15 20 20 20 25 25 25 22 Average Carried 17 | . 2 5 12 15 16 19 16 24 24 18 18 Final Capacity 25 | 8 15 15 15 15 20 20 25 25 25 25 25 Final Carried 25 | . 5 5 15 15 20 18 20 24 25 19 22 Class Distribution -------------------- 28% | Scavenger-Gunner 15% | Tank 15% | Gunner 12% | Commander-Mutant 11% | Mutant 7% | Scavenger-Mutant 6% | Scavenger-Tank Dominant Class ---------------- Mutant | -10/Materials Mutant | -10/Mines Scavenger-Gunner | -9/Materials Gunner | -9/Mines Tank | -9/Exiles Scavenger-Gunner | -8/Mines Scavenger-Gunner | -8/Materials Tank | -8/Storage Commander-Mutant | -8/Recycling Scavenger-Gunner | -8/Scraptown Scavenger-Tank | -6/Factory Resources | -11 -10 -10 -9 -9 -9 -8 -8 -8 -8 -8 -6 ----------- Run | Yrd Mat Min Mat Min Exi Min Mat Sto Rec Scr Fac Matter Collected 4738 | 160 288 40 654 66 944 350 531 548 75 788 294 Remotely 162 | . . . . . . . . 106 56 . . Salvage Created 6268 | . 492 26 1230 12 517 499 1049 680 150 1167 446 Parts 397 | . 23 2 84 1 70 28 62 35 5 64 23 Haulers Intercepted 7 | . 1 . 4 . . . . 2 . . . Recyclers Shooed 2 | . . . . . . . 1 1 . . . Parts Field Recycled . | . . . . . . . . . . . . Retrieved Matter . | . . . . . . . . . . . . Parts Self-Destructed . | . . . . . . . . . . . . Prevented . | . . . . . . . . . . . . Kills | -11 -10 -10 -9 -9 -9 -8 -8 -8 -8 -8 -6 ------- Run | Yrd Mat Min Mat Min Exi Min Mat Sto Rec Scr Fac Combat Hostiles Destroyed 111 | . 10 1 24 1 2 10 19 9 3 23 9 Guns 95 | . 10 . 24 1 1 8 10 9 . 23 9 AOE 11 | . . 1 . . 1 2 7 . . . . Classes Destroyed 25 | . 3 . 6 . 3 1 3 . . 7 2 Worker 7 | . . . 3 . . 1 3 . . . . Builder 2 | . . . . . . . 1 1 . . . Hauler 7 | . 1 . 4 . . . . 2 . . . Recycler 4 | . . . 1 . . . 3 . . . . Mechanic 2 | . . . . . . . 1 1 . . . Operator 3 | . . . 2 . . . . . . . 1 Turret 1 | . . . . . 1 . . . . . . Watcher 7 | . 1 . 3 . . . 2 1 . . . Swarmer 17 | . . . 9 1 . . 3 . . . 4 Grunt 41 | . 10 1 7 . . 8 11 3 . . 1 Brawler 1 | . . . . . . . 1 . . . . Duelist 3 | . . . 1 . . 1 1 . . . . Sentry 18 | . . . 7 . . . 3 4 3 . 1 Specialist 2 | . . . . . . . . . . . 2 Hunter 3 | . . . . . . 1 . 2 . . . Programmer 1 | . . . . . . . . . . . 1 Federalist 3 | . . . . . . . . . . 3 . Explorer 2 | . . . . . . . . . . 2 . Ranger 1 | . . . . . . . . . . 1 . Guru 3 | . . . . . . . . . . 3 . Scientist 1 | . . . . . . . . . . 1 . Scrapper 11 | . . . . . . . . . . 11 . Elite 2 | . . . . . . . . . . 2 . Zionite 8 | . . . . . 8 . . . . . . Assembled 1 | . . . . . 1 . . . . . . Thug 1 | . . . . . . . . . . 1 . Best Kill Streak 8 | . 4 1 4 1 4 4 8 2 1 2 4 Combat Bots Only 4 | . 4 1 4 1 1 3 3 2 1 2 4 Max Kills in Single Turn 3 | . 2 1 2 1 2 2 3 1 1 1 1 Gunslinging 1 | . 1 . 1 . . . . . . . . Exploded 2 | . . 1 . . 1 2 1 . . . . Melee . | . . . . . . . . . . . . Uniques/NPCs Destroyed 5 | . . . . . 4 . . . . 1 . 8R-AWN (-9/Exiles) EX-DEC (-9/Exiles) EX-HEX (-9/Exiles) EX-BIN (-9/Exiles) Triborg (-8/Scraptown) Combat | -11 -10 -10 -9 -9 -9 -8 -8 -8 -8 -8 -6 -------- Run | Yrd Mat Min Mat Min Exi Min Mat Sto Rec Scr Fac Hostile Shots Fired 634 | . 48 3 80 6 87 55 101 33 3 106 112 Missed 181 | . 11 2 18 3 16 17 32 11 1 32 38 Damage Taken 7090 | . 467 33 739 39 1341 609 1330 364 32 1350 786 Core 728 | . 40 1 37 . 101 96 200 37 . 159 57 Absorbed by Shields 228 | . . . . . . . . . . . 228 Ignored by Resistances 8 | . . . . . . . . . . 8 . Core Remaining (%) 59 | 100 . 83 . . . 41 . . . 14 . Volleys Fired 435 | . 28 2 76 5 90 27 67 36 . 78 26 Largest 3 | . 2 1 3 3 3 3 3 3 . 3 3 Hottest 135 | . 40 30 69 69 123 76 135 135 . 100 89 Shots Fired 1066 | . 56 2 223 11 236 73 136 101 . 178 50 Gun 1031 | . 56 . 223 9 230 71 115 101 . 176 50 Cannon 5 | . . . . . 4 . . . . 1 . Launcher 29 | . . 2 . 2 2 2 21 . . . . Special 1 | . . . . . . . . . . 1 . Kinetic 982 | . 56 . 223 9 230 71 72 95 . 176 50 Thermal 5 | . . . . . 4 . . . . 1 . Explosive 29 | . . 2 . 2 2 2 21 . . . . Electromagnetic 49 | . . . . . . . 43 6 . . . Robot Hit Streak 17 | . 13 4 15 2 13 16 16 17 . 15 14 Robot Miss Streak 5 | . 2 . 4 3 4 3 4 4 . 5 1 Penetration Max . | . . . . . . . . . . . . Secondary Targets 16 | . 3 . 5 . 1 3 1 . . 2 1 Max Gunslinging Chain 1 | . 1 . 1 . 1 1 1 . . 1 1 Shots Hit Robots 735 | . 42 1 142 3 151 54 107 66 4 125 40 Core Hits 324 | . 25 3 63 3 34 29 66 30 . 50 21 Critical Kills 3 | . . . 1 . 1 . . . . . 1 Critical Parts Destroyed 17 | . 1 . 3 . . . . 3 3 . 7 Critical Strikes 21 | . 1 . 4 . 2 . . 3 3 . 8 Meltdown 1 | . . . . . 1 . . . . . . Destroy 14 | . 1 . 4 . 1 . . 2 . . 6 Smash 6 | . . . . . . . . 1 3 . 2 Melee Attacks 21 | . . . . . . . . 5 4 . 12 Impact 21 | . . . . . . . . 5 4 . 12 Slashing . | . . . . . . . . . . . . Piercing . | . . . . . . . . . . . . Sneak Attacks 4 | . . . . . . . . 1 2 . 1 Combat Hostiles 2 | . . . . . . . . . 2 . . Follow-up Attacks . | . . . . . . . . . . . . Damage Inflicted 13191 | . 557 139 1608 66 2587 955 3023 1114 227 2132 783 Guns 10418 | . 557 . 1608 43 2291 690 1492 1036 . 2072 629 Cannons 116 | . . . . . 116 . . . . . . Explosions 2198 | . . 139 . 23 180 265 1531 . . 60 . Melee 459 | . . . . . . . . 78 227 . 154 Ramming . | . . . . . . . . . . . . Kinetic 9673 | . 557 . 1608 43 2291 690 829 954 . 2072 629 Thermal 504 | . . . . . 239 . 205 . . 60 . Explosive 1810 | . . 139 . 23 57 265 1326 . . . . Electromagnetic 745 | . . . . . . . 663 82 . . . Impact 459 | . . . . . . . . 78 227 . 154 Slashing . | . . . . . . . . . . . . Piercing . | . . . . . . . . . . . . Highest Corruption 4 | . . . . . . . 2 2 2 . 4 Average Corruption 1 | . . . . . . . 2 2 2 . 1 Corruption Purged . | . . . . . . . . . . . . Corruption Blocked . | . . . . . . . . . . . . Effects 44 | . . . . . . . 2 23 18 . 1 Message Errors 7 | . . . . . . . . 4 3 . . Matter Fused 9 | . . . . . . . . 4 5 . . Heat Flow Errors 6 | . . . . . . . . 6 . . . Energy Discharges 6 | . . . . . . . . 1 5 . . Parts Fused 2 | . . . . . . . . 1 1 . . Data Loss (minor) 5 | . . . . . . . 2 2 1 . . Data Loss (major) 4 | . . . . . . . . 1 2 . 1 Misfires 1 | . . . . . . . . 1 . . . Alerts 4 | . . . . . . . . 3 1 . . Overload Shots . | . . . . . . . . . . . . Overflow Damage 498 | . . . . . . . 109 78 157 . 154 Projectiles . | . . . . . . . . . . . . Explosions 109 | . . . . . . . 109 . . . . Melee 389 | . . . . . . . . 78 157 . 154 Knockbacks 2 | . . . . . . . . . . . 2 Impact 2 | . . . . . . . . . . . 2 Kinetic . | . . . . . . . . . . . . Secondary . | . . . . . . . . . . . . Self-Inflicted Damage 411 | . . . . 13 38 . 290 . . 70 . Shots 12 | . . . . 1 1 . 9 . . 1 . Rammed . | . . . . . . . . . . . . Targets Rammed . | . . . . . . . . . . . . Kicked . | . . . . . . . . . . . . Crushed . | . . . . . . . . . . . . Highest Temperature 267 | . 9 . 14 . 252 176 25 241 . 30 267 Average Temperature 80 | . 5 . 3 . 92 88 11 83 . 15 82 Received Heat Transfer 1914 | . 261 9 216 . . 288 585 90 9 439 17 Effects 4 | . . . . . 3 . . 1 . . . Energy Bleed 1 | . . . . . . . . 1 . . . Interference 3 | . . . . . 3 . . . . . . Siege Activations . | . . . . . . . . . . . . Robots Corrupted 7 | . . . . . . . 2 1 3 . 1 Combat Hostiles 5 | . . . . . . . 2 . 3 . . Parts Fried 8 | . . . . . . . 2 2 3 . 1 Impact Corruptions 12 | . . . . . . . . 3 4 . 5 Robots Melted 1 | . . . . . 1 . . . . . . Combat Hostiles . | . . . . . . . . . . . . Parts Melted 3 | . . . . . . . . . . 3 . Heat Transferred 640 | . . . . . 240 . 350 . . 50 . Parts Sabotaged . | . . . . . . . . . . . . Parts Stolen 2 | . . . . . . . . . . 2 . Parts Stripped . | . . . . . . . . . . . . Power Chain Reactions 4 | . . . . . . . 4 . . . . Alert | -11 -10 -10 -9 -9 -9 -8 -8 -8 -8 -8 -6 ------- Run | Yrd Mat Min Mat Min Exi Min Mat Sto Rec Scr Fac Peak Influence 543 | . 309 109 543 263 . 145 410 268 84 . 141 Initial 211 | . . 42 42 211 . . 32 172 . . . Average 125 | . 121 61 213 139 . 63 267 78 19 . 35 Maximum Alert Level 2 | . 1 . 2 1 . . 2 1 . . . Low Security (%) 75 | 100 78 100 52 61 . 100 37 93 100 . 100 Level 1 17 | . 21 . 28 38 . . 37 6 . . . Level 2 7 | . . . 19 . . . 24 . . . . Level 3 . | . . . . . . . . . . . . Level 4 . | . . . . . . . . . . . . Level 5 . | . . . . . . . . . . . . High Security . | . . . . . . . . . . . . Max Security . | . . . . . . . . . . . . Squads Dispatched 14 | . 3 . 4 . . . 3 . . . 4 Investigation 1 | . 1 . . . . . . . . . . Extermination 2 | . . . . . . . . . . . 2 Reinforcement 9 | . 2 . 4 . . . 1 . . . 2 Assault . | . . . . . . . . . . . . Garrison 2 | . . . . . . . 2 . . . . Intercept . | . . . . . . . . . . . . Searches Triggered . | . . . . . . . . . . . . Construction Impeded . | . . . . . . . . . . . . Haulers Reinforced . | . . . . . . . . . . . . Active Scanning Responses . | . . . . . . . . . . . . Cargo Convoy Interrupts . | . . . . . . . . . . . . Stealth | -11 -10 -10 -9 -9 -9 -8 -8 -8 -8 -8 -6 --------- Run | Yrd Mat Min Mat Min Exi Min Mat Sto Rec Scr Fac Distress Signals 13 | . 2 . 4 . . . 3 3 . 1 . Communications Jammed . | . . . . . . . . . . . . Distress Signals . | . . . . . . . . . . . . Times Spotted 204 | . 14 2 42 7 18 10 31 14 1 47 18 Peak Tracking Total 9 | . 6 1 5 4 9 3 4 3 1 5 6 Tactical Retreats 20 | . 1 . 5 1 5 . 2 . . 6 . Traps | -11 -10 -10 -9 -9 -9 -8 -8 -8 -8 -8 -6 ------- Run | Yrd Mat Min Mat Min Exi Min Mat Sto Rec Scr Fac Traps Triggered 8 | . 1 1 . . . . 2 4 . . . Indirectly . | . . . . . . . . . . . . Trap Hack Attempts . | . . . . . . . . . . . . Triggered . | . . . . . . . . . . . . Disarmed . | . . . . . . . . . . . . Reprogrammed . | . . . . . . . . . . . . Reused . | . . . . . . . . . . . . Traps Extracted . | . . . . . . . . . . . . Installed . | . . . . . . . . . . . . Triggered . | . . . . . . . . . . . . Machines | -11 -10 -10 -9 -9 -9 -8 -8 -8 -8 -8 -6 ---------- Run | Yrd Mat Min Mat Min Exi Min Mat Sto Rec Scr Fac Machines Disabled 24 | . . . 2 . 14 . 7 1 . . . Max in Single Turn 3 | . . . 1 . 2 . 3 1 . . . Garrison Access 1 | . . . . . . . . . . . 1 Machines Repaired . | . . . . . . . . . . . . Machines Dismantled . | . . . . . . . . . . . . Machines Sabotaged . | . . . . . . . . . . . . Overloaded Fab Kills . | . . . . . . . . . . . . Hacking | -11 -10 -10 -9 -9 -9 -8 -8 -8 -8 -8 -6 --------- Run | Yrd Mat Min Mat Min Exi Min Mat Sto Rec Scr Fac Machines Accessed 32 | . 1 1 7 . 2 . 5 10 3 . 3 Terminals 25 | . 1 . 7 . . . 3 9 3 . 2 Fabricators . | . . . . . . . . . . . . Repair Stations . | . . . . . . . . . . . . Recycling Units . | . . . . . . . . . . . . Scanalyzers 1 | . . . . . . . 1 . . . . Garrison Access 3 | . . . . . . . 1 1 . . 1 Total Hacks 60 | . 4 1 15 . 2 . 8 18 6 . 6 Successful 30 | . 3 1 7 . 2 . 2 8 3 . 4 Failed 30 | . 1 . 8 . . . 6 10 3 . 2 Catastrophic 6 | . . . 1 . . . 3 1 . . 1 Database Lockouts . | . . . . . . . . . . . . Manual 18 | . 1 . 5 . 1 . 2 7 2 . . Terminals 49 | . 4 . 15 . . . 4 16 6 . 4 Fabricators . | . . . . . . . . . . . . Repair Stations . | . . . . . . . . . . . . Recycling Units . | . . . . . . . . . . . . Scanalyzers 3 | . . . . . . . 3 . . . . Garrison Access 5 | . . . . . . . 1 2 . . 2 Terminal Hacks 26 | . 2 1 6 . 2 . 1 8 3 . 3 Record 2 | . . . . . 1 . . . . . 1 Robot Analysis 2 | . . . 1 . . . . . 1 . . Prototype ID Bank 2 | . . . 1 . . . . 1 . . . Open Door 6 | . . 1 . . . . . 5 . . . Branch Access Points 3 | . . . 1 . . . 1 . 1 . . Emergency Access Points 2 | . . . 2 . . . . . . . . Alert Level 2 | . . . . . . . . . 1 . 1 Unreport Threat 3 | . . . 1 . . . . 2 . . . Locate Traps 2 | . 1 . . . . . . . . . 1 Zone Layout 1 | . 1 . . . . . . . . . . Derelict Proto ID Bank 1 | . . . . . 1 . . . . . . Fabricator Hacks . | . . . . . . . . . . . . Repair Station Hacks . | . . . . . . . . . . . . Recycling Unit Hacks . | . . . . . . . . . . . . Scanalyzer 1 | . . . . . . . 1 . . . . Insert Component 1 | . . . . . . . 1 . . . . Garrison Access Hacks 1 | . . . . . . . . . . . 1 Seal Access 1 | . . . . . . . . . . . 1 Unauthorized Hacks 2 | . 1 . 1 . . . . . . . . Terminals 2 | . 1 . 1 . . . . . . . . Botnet 2 | . 1 . 1 . . . . . . . . Fabricators . | . . . . . . . . . . . . Repair Stations . | . . . . . . . . . . . . Recycling Units . | . . . . . . . . . . . . Scanalyzers . | . . . . . . . . . . . . Garrison Access . | . . . . . . . . . . . . Data Cores Recovered . | . . . . . . . . . . . . Used . | . . . . . . . . . . . . Hacking Detections 20 | . 1 . 5 . . . 5 5 2 . 2 Full Trace Events 1 | . . . . . . . . . 1 . . Feedback Events . | . . . . . . . . . . . . Feedback Blocked . | . . . . . . . . . . . . Robot Schematics Acquired . | . . . . . . . . . . . . Robots Built . | . . . . . . . . . . . . Authchips . | . . . . . . . . . . . . Time . | . . . . . . . . . . . . Total Robot Build Rating . | . . . . . . . . . . . . Part Schematics Acquired . | . . . . . . . . . . . . Parts Built . | . . . . . . . . . . . . Authchips . | . . . . . . . . . . . . Time . | . . . . . . . . . . . . Total Part Build Rating . | . . . . . . . . . . . . Parts Repaired . | . . . . . . . . . . . . Time . | . . . . . . . . . . . . Parts Recycled . | . . . . . . . . . . . . Recycled Matter . | . . . . . . . . . . . . Retrieved Matter . | . . . . . . . . . . . . Retrieved Components . | . . . . . . . . . . . . Parts Scanalyzed 1 | . . . . . . . 1 . . . . Part Schematics Acquired . | . . . . . . . . . . . . Parts Damaged . | . . . . . . . . . . . . Bothacking | -11 -10 -10 -9 -9 -9 -8 -8 -8 -8 -8 -6 ------------ Run | Yrd Mat Min Mat Min Exi Min Mat Sto Rec Scr Fac Used RIF Installer . | . . . . . . . . . . . . Robots Hacked . | . . . . . . . . . . . . Non-combat . | . . . . . . . . . . . . Combat . | . . . . . . . . . . . . Robot Hacks Applied . | . . . . . . . . . . . . Relay Couplers Released . | . . . . . . . . . . . . Fabnet Peak Effective % . | . . . . . . . . . . . . Robots Rewired . | . . . . . . . . . . . . Allies Hacked . | . . . . . . . . . . . . Hacks Repelled . | . . . . . . . . . . . . Allies | -11 -10 -10 -9 -9 -9 -8 -8 -8 -8 -8 -6 -------- Run | Yrd Mat Min Mat Min Exi Min Mat Sto Rec Scr Fac Total Allies 16 | . . 3 . 3 . . . 10 . . . Largest Group 10 | . . 3 3 3 1 . . 10 10 10 . Highest-Rated Group 173 | . . 72 72 40 16 . . 173 173 173 . Highest-Rated Ally 31 | . . 31 31 16 16 . . 29 29 29 . Total Orders 16 | . . . . . 1 . . 1 2 12 . STAY 13 | . . . . . 1 . . . 1 11 . FOLLOW 2 | . . . . . . . . . 1 1 . EXPLORE 1 | . . . . . . . . 1 . . . Ally Attacks 298 | . . 3 31 12 1 . . 5 . 246 . Total Damage 9659 | . . 21 483 83 1 . . 63 . 9008 . Kills 70 | . . 1 5 4 . . . 1 . 59 . Allies Corrupted . | . . . . . . . . . . . . Allies Melted . | . . . . . . . . . . . . Turrets Deployed 4 | . . . . . . . . . . 4 . Intel | -11 -10 -10 -9 -9 -9 -8 -8 -8 -8 -8 -6 ------- Run | Yrd Mat Min Mat Min Exi Min Mat Sto Rec Scr Fac Robot Analysis Total 2 | . . . 1 . . . . . 1 . . Derelict Logs Recovered 2 | . . 1 . 1 . . . . . . . Drone Launches 6 | . . . . . . . . 6 . . . Drone Recoveries 2 | . . . . . . . . 2 . . . Exploration | -11 -10 -10 -9 -9 -9 -8 -8 -8 -8 -8 -6 ------------- Run | Yrd Mat Min Mat Min Exi Min Mat Sto Rec Scr Fac Turns Passed 16144 | 61 534 198 2304 1038 2395 601 1180 1731 1281 3657 1164 Spaces Moved 5903 | 40 258 104 1159 603 1061 225 354 547 504 638 410 Core 16 | 13 . . . . . . 3 . . . . Treads 5858 | 27 258 104 1159 603 1061 225 322 547 504 638 410 Legs 29 | . . . . . . . 29 . . . . Wheels . | . . . . . . . . . . . . Hover . | . . . . . . . . . . . . Flight . | . . . . . . . . . . . . Fastest Speed 50 | 50 160 160 160 160 160 160 160 238 250 220 250 Average Speed 206 | 133 160 160 160 160 188 226 260 258 250 247 250 Slowest Speed 750 | 160 160 160 240 160 400 240 750 490 250 330 250 Overloaded Moves . | . . . . . . . . . . . . Propulsion Burnouts . | . . . . . . . . . . . . Robots Hopped . | . . . . . . . . . . . . Cave-ins Triggered . | . . . . . . . . . . . . Exploration Rate (%) 58 | 4 60 29 89 99 90 63 45 86 98 29 14 Regions Visited 11 Branch Regions 7 Pre-discovered Areas 2 | . . . . 1 1 . . . . . . Known Exits Taken 3 | . . . 1 . . . 1 1 . . . Unknown Exits Taken 8 | 1 1 1 . 1 1 1 . . 1 1 . Scrap Searched 5 | . . . . 2 . 1 . . . 2 . Spaces Dug 43 | . . 12 . 20 . . . 2 . . 9 Terrain Destroyed 245 | . . 27 . 20 18 14 137 2 . 17 10 Melee 11 | . . . . . . . . 2 . . 9 Projectile 4 | . . . . . . . . . . 4 . AOE 229 | . . 27 . 20 18 14 137 . . 13 . Terrain Rammed . | . . . . . . . . . . . . Walls Destroyed . | . . . . . . . . . . . . Machines Disabled . | . . . . . . . . . . . . Actions | -11 -10 -10 -9 -9 -9 -8 -8 -8 -8 -8 -6 --------- Run | Yrd Mat Min Mat Min Exi Min Mat Sto Rec Scr Fac Total 9030 | 45 323 133 1469 669 1292 264 493 775 519 2570 478 Wait 2375 | . 30 26 177 61 81 6 37 138 11 1795 13 Move 5892 | 39 257 103 1158 602 1060 224 353 546 503 637 410 Hop . | . . . . . . . . . . . . Pick Up 99 | . 5 . 25 . 19 2 9 15 . 17 7 Fast Attach 52 | 6 2 . 8 . 6 1 13 11 . 3 2 Attach 46 | . . . 5 . 9 2 8 5 . 14 3 Detach 12 | . . . . . 4 . 1 . 1 6 . Swap 31 | . . 2 5 1 8 . 1 6 . 4 4 Drop 65 | . 1 . 15 . 15 2 4 11 . 16 1 Fire 435 | . 28 2 76 5 90 27 67 36 . 78 26 Melee 21 | . . . . . . . . 5 4 . 12 Ram . | . . . . . . . . . . . . Kick . | . . . . . . . . . . . . Crush . | . . . . . . . . . . . . Escape Stasis . | . . . . . . . . . . . . Rewire . | . . . . . . . . . . . . Trap . | . . . . . . . . . . . . Miscellaneous 2 | . . . . . . . . 2 . . . Route ------- -11/Scrapyard -10/Materials -10/Mines -9/Materials (discovered 4 exits: *Mat x2 / *Min x2) -9/Mines (discovered 3 exits: *Mat x2 / *Exi) -9/Exiles -8/Mines -8/Materials (discovered 3 exits: [*Fac] / *Sto x2) -8/Storage -8/Recycling (discovered 2 exits: *Fac / [*Scr]) -8/Scraptown -6/Factory History --------- Turn | Location | Event 43 | -11/Scrapyard | Discovered new exit (range 13) 62 | -11/Scrapyard | Entered Materials 300 | -10/Materials | Build established: Mutant 367 | -10/Materials | Discovered new exit (range 8) 596 | -10/Materials | Entered Mines 601 | -10/Mines | Assembled infested the area 617 | -10/Mines | Received a Mining Laser from a helpful Derelict 637 | -10/Mines | Met a Derelict bent on vengeance 685 | -10/Mines | Met a Derelict who couldn't figure out how to use a Trap Extractor 768 | -10/Mines | Discovered new exit (range 15) 794 | -10/Mines | Entered Materials 794 | -9/Materials | Accompanied by 3 allies 794 | -9/Materials | Evolved 2 slots: Propulsion x1, Weapon x1 806 | -9/Materials | Led the pair of lost Derelicts to an unsafe place 1073 | -9/Materials | Discovered new exit (range 15) 1088 | -9/Materials | Lost 3 parts (2n1w) 1480 | -9/Materials | Discovered new exit (range 10) 1610 | -9/Materials | Build established: Scavenger-Gunner 1703 | -9/Materials | Discovered new exit (range 13) 2555 | -9/Materials | Discovered new exit (range 8) 2645 | -9/Materials | Identified exit to Mines 3067 | -9/Materials | Build established: Gunner 3098 | -9/Materials | Entered Mines 3099 | -9/Mines | Learned location of Storage (-8) 3164 | -9/Mines | Assisted by bots powering up and referring to "LRC-V3" 3416 | -9/Mines | YI-UF0 nonchalantly dropped a Grenade Launcher on the ground 3860 | -9/Mines | Discovered new exit (range 6) 3919 | -9/Mines | Discovered new exit (range 15) 4130 | -9/Mines | Deemed a non-threat by the Exiles lab entrance 4130 | -9/Mines | Discovered new exit (range 5) 4136 | -9/Mines | Entered Exiles 4136 | -9/Exiles | Accompanied by 1 ally 4175 | -9/Exiles | Met 8R-AWN 4202 | -9/Exiles | Met EX-HEX 4277 | -9/Exiles | Met EX-DEC 4284 | -9/Exiles | Learned location of Zion (-6) 4359 | -9/Exiles | Discovered new exit (range 12) 4481 | -9/Exiles | Visited The Gauntlet 4663 | -9/Exiles | Met EX-BIN 4690 | -9/Exiles | Aligned with FarCom system 4692 | -9/Exiles | Given EX-Vault access code 4729 | -9/Exiles | Opened EX-Vault 4737 | -9/Exiles | Found Deploy-a-Sentry 4739 | -9/Exiles | Found Deploy-a-Sentry 4742 | -9/Exiles | Found Deploy-a-Sentry 4754 | -9/Exiles | Found YOLO Cannon 4786 | -9/Exiles | Warned to stay clear of 0b10 Research branches 5033 | -9/Exiles | Build established: Tank 5201 | -9/Exiles | Attacked by the Exiles 5401 | -9/Exiles | Lost 6 parts (3n1u2w) 5417 | -9/Exiles | Destroyed 8R-AWN 5434 | -9/Exiles | Found Prototype Processor 5844 | -9/Exiles | Destroyed EX-DEC 5885 | -9/Exiles | Destroyed EX-HEX 5891 | -9/Exiles | Destroyed EX-BIN 5911 | -9/Exiles | Found Deploy-a-Sentry 6129 | -9/Exiles | Found Prototype Processor 6290 | -9/Exiles | Found Prototype Device 6531 | -9/Exiles | Stole two prototypes: YOLO Cannon, Deploy-a-Sentry 6531 | -9/Exiles | Entered Mines 6848 | -8/Mines | Build established: Scavenger-Gunner 7090 | -8/Mines | Discovered new exit (range 12) 7094 | -8/Mines | Core integrity fell below 50% 7132 | -8/Mines | Entered Materials 7132 | -8/Materials | Evolved 2 slots: Utility x2 7132 | -8/Materials | Identified System Purifier 7133 | -8/Materials | Identified exit to Storage 7239 | -8/Materials | Identified Exp. Targeting Computer 7388 | -8/Materials | Lost 3 parts (1p1n1u) 7483 | -8/Materials | Lost 7 parts (1p2n1u3w) 8079 | -8/Materials | Garrison activated, responded to threat 8191 | -8/Materials | Discovered new exit (range 16) 8307 | -8/Materials | Garrison activated, responded to threat 8312 | -8/Materials | Entered Storage 8313 | -8/Storage | Identified exit to Recycling 8413 | -8/Storage | Build established: Tank 9835 | -8/Storage | Build established: Mutant 9860 | -8/Storage | Assisted by bots powering up and referring to "LRC-V3" 10029 | -8/Storage | Used back door to open Recycling access 10043 | -8/Storage | Entered Recycling 10043 | -8/Recycling | Accompanied by 10 allies 10166 | -8/Recycling | Build established: Commander-Mutant 10865 | -8/Recycling | Discovered new exit (range 8) 11200 | -8/Recycling | Scanned before Scraplab entrance 11295 | -8/Recycling | Entered Scraplab 11315 | -8/Recycling | Discovered new exit (range 2) 11324 | -8/Recycling | Entered Scraptown 11324 | -8/Scraptown | Accompanied by 10 allies 11324 | -8/Scraptown | System corruption cleaned by C-Scrubber 11711 | -8/Scraptown | DAS Turret deployed 11717 | -8/Scraptown | DAS Turret deployed 12087 | -8/Scraptown | Attacked by Scraptown defenders 12093 | -8/Scraptown | Allies destroyed Triborg 12183 | -8/Scraptown | Lost 7 allies 12459 | -8/Scraptown | Build established: Mutant 12719 | -8/Scraptown | DAS Turret deployed 12748 | -8/Scraptown | DAS Turret deployed 12826 | -8/Scraptown | Core integrity fell below 50% 12897 | -8/Scraptown | Visited Awakened 13113 | -8/Scraptown | Build established: Scavenger-Gunner 14707 | -8/Scraptown | YOLO Cannon suddenly exploded 14708 | -8/Scraptown | Core integrity fell below 20% 14738 | -8/Scraptown | Lost 4 parts (1p1u2w) 14971 | -8/Scraptown | Discovered new exit (range 5) 14981 | -8/Scraptown | Entered Factory 14981 | -6/Factory | Evolved 4 slots: Power x1, Propulsion x1, Utility x2 15350 | -6/Factory | Build established: Scavenger-Tank 15711 | -6/Factory | Build established: Scavenger-Mutant 16145 | -6/Factory | Self-destructed Last Messages --------------- 16056_ O-24 Administrator system corrupted by crushing effect. 16056_ O-24 Administrator knocked back. 16057_ O-24 Administrator system terminally corrupted. 16057_ System Restoration Module fried. 16123_ Repair Station disabled. 16133_ P-60 Hacker suffers critical hit (Smash). 16133_ Destroyed Remote Datajack. 16133_ P-60 Hacker system corrupted by crushing effect. 16133_ P-60 Hacker knocked back. 16139_ G-50 Soldier destroyed. 16144_ Neutrino Reactor explodes. 16144_ Backup Propulsion I tumbles out of repair station. 16144_ Backup Plating I tumbles out of repair station. 16144_ Backup Power I tumbles out of repair station. 16144_ Backup Plating I tumbles out of repair station. 16144_ Backup Propulsion I tumbles out of repair station. 16144_ Backup Power I tumbles out of repair station. 16144_ Backup Plating I tumbles out of repair station. 16144_ Backup Propulsion I tumbles out of repair station. 16144_ Door malfunctions. Map ----- +----------------------------------------------------+ | ?????????????????????????????????????????????????? | | ?????????????????????????????????????????????????? | | ?????????????????????????????????????????????????? | | ?????????????????????????????????????????????????? | | ?????????????????????????????????????????????????? | | ?????????????????????????????????????????????????? | | ?????????????????????????????????????????????????? | | ?????????????????????????????????????????????????? | | ?????????????????????????????????????????????????? | | ?????????????????????????????????????????????????? | | ?????????????????????????????????????????????????? | | ?????????????????????????????????????????????????? | | ##########???????????????????????????????????????? | | # #???????????????????????????????????????? | | # """ #???????????????????????????????????????? | | # ! """ #????? ???????????????????????????????? | | # """ #?????# ??????????????????????????????? | | # ] !#?????# ###########?????????????????? | | # """ #??????? # #?????????????????? | | # """ =##??????? + #?????????????????? | | " """ "#?????? # [ #?????????????????? | | # ##????? # =! #?????????????????? | | ###+############ #g *!"#?????????????????? | | # !== "#?????????????????? | | s s # %s* "#?????????????????? | | s / @ p #?????????????????? | | # #########?????????????????? | | # ##????????????????????????? | | ##########+#######+####"#????????????????????????? | | #????# #????????????????????????? | | ?????# * #????????????????????????? | | ?????# % #????????????????????????? | | ?????# #????????????????????????? | | ?????# """ """ #????????????????????????? | | ?????# """ """ #????????????????????????? | | ?????# """ """ #????????????????????????? | | ?????# """T""" #????????????????????????? | | ?????####################????????????????????????? | | | | | | | | | | | | | | | | | | | | | | | | | +----------------------------------------------------+ Best States ------------- Heat Dissipation 57 Energy Generation 29 Energy Capacity 500 Matter Stores 300 Matter Capacity 300 Sight Range 16 Robot Scan Range 15 Terrain Scan Density 10 Armor Coverage 450 Resistance: EM 20 Evasion (%) 40 Targeting Accuracy 12 Recoil Reduction 4 Authchip Count 4 Item Schematics ----------------- None Robot Schematics ------------------ None Fabricated ------------ Nothing Alien Tech Used ----------------- None Achievements -------------- Release The Drones! Challenges ------------ None Game ------ Seed ImprinterTeslaScythe Manual? 0 Play Time 01:39:51 Cumulative 143.9 hours Start 2025.03.19 @ 22:51:32 End 2025.03.20 @ 10:20:11 Sessions 5 Manual Loads 0 Difficulty Rogue Special Mode None Game No. 200 Rogue 200 Adventurer 0 Explorer 0 Win Type - Total 1 Types 1/0/0/0/0/0/0/0/0 Lore% 50 Gallery% 55 Achievement% 53 Wizard Run 0 Options --------- Layout 1 ASCII 0 Keyboard 0 Movement Mouse Keybinds 0 Fullscreen 1 Font 32/SmallcapsGlow Map View 77x35 Zoom Use 0% Tactical HUD 1 Map Filters NONE Filters NONE Steam 1 RUN: e5d4d7b4-a805-45a9-80af-975d5ed23e1a